bitfinex/quotes_ETHUSD_20251224
["timestamp","ask_amount","ask_price","bid_price","bid_amount"]
[1766598113203,9.17313026,2941.5,2940.8,0.03400435]
[1766598113396,9.13909614,2941.5,2940.8,0.03400435]
[1766598113700,0.03403412,2941.4,2940.8,0.03400435]
[1766598113903,0.94794373,2941.4,2940.7,4.9259]
[1766598114120,5.79244373,2941.4,2940.6,0.886]
[1766598115409,3.46091451,2941.3,2940.6,0.886]
[1766598115599,4.90555731,2941.1,2940.6,0.886]
[1766598115793,0.03403412,2941.0,2940.6,0.886]
[1766598116216,0.03403412,2941.0,2940.6,9.21256427]
[1766598116514,4.8445,2941.4,2940.7,4.9599055]
[1766598116682,8.30498394,2941.7,2940.7,4.9599055]
[1766598116883,4.8445,2941.7,2940.7,4.9599055]
[1766598117214,0.06105731,2941.6,2940.8,5.85055698]
[1766598117381,0.06105731,2941.6,2940.9,0.03400319]
[1766598117578,3.46066727,2941.6,2941.0,0.886]
[1766598118104,4.8445,2941.9,2941.0,0.886]
[1766598118285,4.8445,2941.6,2941.0,0.886]
[1766598118484,4.8445,2941.4,2940.4,3.40085508]
[1766598118810,4.8445,2941.2,2940.5,0.92000782]
[1766598119193,4.8445,2941.2,2940.5,0.886]
[1766598119595,4.8445,2941.1,2940.5,0.886]
[1766598119799,4.90555731,2941.0,2940.5,0.886]
[1766598120266,0.06105731,2940.8,2940.0,0.001]
[1766598120383,4.8445,2940.7,2940.0,3.40234313]
[1766598120583,4.8445,2940.7,2940.0,0.001]
[1766598120796,4.8445,2940.7,2940.1,3.40120375]
[1766598121005,4.8445,2940.7,2940.0,3.40232369]
[1766598121206,4.8445,2940.7,2940.0,0.0350136]
[1766598121411,4.8445,2940.7,2940.0,4.36112219]
[1766598122416,4.8445,2940.7,2940.0,12.70368273]
[1766598122603,4.8445,2940.7,2940.0,9.26830859]
[1766598123347,4.8445,2940.7,2940.0,5.86604719]
[1766598123495,0.06105731,2939.9,2939.1,3.40236661]
[1766598123690,5.1398,2939.5,2938.9,0.001]
[1766598123903,5.65988573,2939.5,2938.6,0.03402981]
[1766598124123,5.65988573,2939.5,2938.5,4.97523096]
[1766598124325,5.1398,2939.5,2938.6,3.40289035]
[1766598124494,0.1759073,2939.8,2939.1,4.9412]
[1766598124694,0.1759073,2939.8,2939.2,0.03402286]
[1766598124895,5.3157073,2939.8,2939.1,0.886]
[1766598125410,5.1398,2939.7,2938.8,0.886]
[1766598126009,8.54162337,2939.6,2938.9,0.03402633]
[1766598126204,8.54162337,2939.6,2938.8,0.886]
[1766598126431,5.1398,2939.6,2938.9,3.43662856]
[1766598126646,3.57755865,2939.8,2939.0,4.9412]
[1766598126647,0.1759073,2939.8,2939.0,4.9412]
[1766598126851,0.1759073,2939.8,2939.1,5.81300688]
[1766598127066,0.1759073,2939.8,2939.2,0.886]
[1766598127278,3.57750168,2939.8,2939.3,0.0340217]
[1766598127567,8.71730168,2939.8,2939.2,0.886]
[1766598127946,5.3157073,2939.8,2939.2,0.886]
[1766598128157,0.1759073,2939.8,2939.3,0.0340217]
[1766598128527,5.1398,2940.5,2939.4,5.37343054]
[1766598128725,11.94069172,2940.8,2939.6,4.9412]
[1766598128925,5.1398,2940.7,2939.7,5.8282]
[1766598129170,5.1398,2940.7,2939.8,0.61683591]
[1766598129171,5.20085731,2940.7,2939.8,0.61683591]
[1766598129326,5.20085731,2940.7,2939.8,0.03401591]
[1766598130128,5.20085731,2940.5,2939.4,0.43223054]
[1766598130353,5.20085731,2940.5,2939.5,0.887]
[1766598130553,5.1398,2940.2,2939.6,0.887]
[1766598132160,5.1398,2940.2,2939.7,0.03401707]
[1766598132954,3.40090353,2940.4,2939.7,0.03401707]
[1766598132955,8.54074075,2940.4,2939.7,0.03401707]
[1766598133256,8.54074075,2940.4,2939.7,0.62023878]
[1766598133474,5.1398,2940.3,2939.7,0.03401707]
[1766598133834,5.1398,2940.3,2939.6,0.887]
[1766598134365,8.54087313,2940.3,2939.6,0.887]
[1766598134866,3.40066653,2940.6,2939.7,4.9412]
[1766598135067,3.40066653,2940.6,2939.8,5.89821438]
[1766598135553,6.80142178,2940.6,2939.8,5.89821438]
[1766598135759,11.94122178,2940.6,2939.8,5.89821438]
[1766598136972,5.1398,2940.6,2939.8,9.29979816]
[1766598137157,3.40061102,2940.7,2939.9,4.9412]
[1766598137357,3.40061102,2940.7,2940.0,6.78879183]
[1766598137672,3.40061102,2940.7,2940.1,0.03401244]
[1766598137876,8.54001579,2941.0,2940.1,0.03401244]
[1766598138042,3.40015087,2941.1,2940.1,4.97521244]
[1766598138373,3.40015087,2941.1,2940.3,4.9412]
[1766598138575,3.40015087,2941.1,2940.4,0.92100897]
[1766598140347,5.1398,2941.2,2940.4,4.32183911]
[1766598140542,3.40175031,2941.4,2940.5,4.9412]
[1766598140750,6.80150062,2941.4,2940.6,6.24160035]
[1766598140958,8.54155031,2941.4,2940.6,4.97520666]
[1766598141274,5.1418,2941.4,2940.6,8.3758276]
[1766598141440,5.1418,2941.4,2940.6,8.34183908]
[1766598141647,5.1418,2941.4,2940.7,0.83418391]
[1766598141847,5.1418,2941.4,2940.8,0.92100435]
[1766598142455,5.1418,2941.4,2940.8,0.03400435]
[1766598142751,5.1418,2941.4,2940.9,0.887]
[1766598143185,8.5415878,2941.4,2940.9,0.887]
[1766598143486,8.5415878,2941.4,2940.8,0.03400435]
[1766598143656,11.9413756,2941.4,2940.9,0.887]
[1766598143853,5.1398,2941.3,2940.9,0.887]
[1766598144654,5.1398,2941.0,2939.6,4.9412]
[1766598144886,3.40031963,2940.9,2940.1,8.3423791]
[1766598145181,3.40031963,2940.9,2940.2,0.92101129]
[1766598145390,8.54011963,2940.9,2940.2,0.92101129]
[1766598145569,5.1398,2940.8,2940.2,0.03401129]
[1766598145771,5.99381196,2940.8,2940.3,0.887]
[1766598146276,3.40026422,2941.0,2940.4,0.03400897]
[1766598146592,8.54006422,2941.0,2940.3,0.92101013]
[1766598146753,8.54006422,2941.0,2940.4,0.03400897]
[1766598147087,8.54001708,2941.0,2940.4,0.03400897]
[1766598148282,5.1398,2941.0,2940.4,0.03400897]
[1766598148487,3.40020542,2941.0,2940.4,0.03400897]
[1766598148676,3.40020542,2941.0,2940.4,4.97520897]
[1766598148875,6.7999456,2941.2,2940.4,4.97520897]
[1766598149086,0.68610029,2941.1,2940.4,4.97520897]
[1766598149556,5.82590029,2941.1,2940.4,4.97520897]
[1766598150889,5.1398,2941.1,2940.4,4.97520897]
[1766598151063,3.39989799,2941.3,2940.5,4.9412]
[1766598151379,3.39989799,2941.3,2940.6,4.97520666]
[1766598151549,3.39989799,2941.3,2940.7,0.887]
[1766598151756,0.002,2941.4,2940.7,6.3798]
[1766598151955,0.002,2941.5,2940.8,0.67538502]
[1766598152151,5.3062,2941.9,2940.8,0.67538502]
[1766598152152,5.3062,2941.9,2940.9,5.4928]
[1766598152381,5.3062,2941.9,2941.1,5.4928]
[1766598152382,5.3062,2941.8,2941.1,5.4928]
[1766598152573,5.3062,2941.8,2941.2,0.887]
[1766598152788,5.3062,2941.8,2941.3,0.03399857]
[1766598153287,3.39907892,2942.0,2941.3,0.03399857]
[1766598153558,6.79815784,2942.0,2941.3,0.03399857]
[1766598153868,3.39907892,2942.0,2941.3,6.50818138]
[1766598154758,0.002,2941.8,2941.3,6.50818138]
[1766598154954,0.002,2941.8,2941.3,4.41521489]
[1766598155180,5.3082,2942.1,2941.4,5.4928]
[1766598155387,0.002,2942.1,2941.5,5.52679626]
[1766598155688,0.002,2942.1,2941.7,5.4928]
[1766598156492,0.002,2942.1,2941.8,0.03399279]
[1766598156795,0.002,2942.1,2941.7,5.4928]
[1766598158081,0.002,2942.1,2941.6,0.887]
[1766598158282,5.1988,2942.0,2941.0,8.79421503]
[1766598158474,5.1988,2942.0,2941.1,0.886]
[1766598158794,5.1988,2941.5,2941.1,0.886]
[1766598158998,5.72478573,2941.4,2940.5,5.3941]
[1766598159201,5.1988,2941.2,2940.6,0.886]
[1766598159586,5.1988,2941.2,2940.7,0.0340055]
[1766598159775,5.1988,2941.2,2940.6,0.886]
[1766598160674,5.25985731,2941.1,2940.3,0.03401013]
[1766598160881,5.72478573,2941.0,2940.4,0.886]
[1766598161096,9.12499744,2941.0,2940.5,0.03400782]
[1766598161296,5.25985731,2940.9,2939.0,3.89]
[1766598161501,5.25985731,2940.7,2939.9,0.886]
[1766598161704,5.1988,2940.4,2939.5,0.001]
[1766598161892,5.1988,2940.4,2939.6,0.886]
[1766598162062,5.1988,2940.2,2939.7,0.03401707]
[1766598162602,5.1988,2940.2,2939.6,0.886]
[1766598162909,5.25985731,2940.1,2939.5,0.887]
[1766598163195,8.66119707,2940.1,2939.5,1.51851205]
[1766598163397,5.1988,2940.0,2939.5,0.001]
[1766598163604,5.1988,2940.0,2939.5,0.887]
[1766598163767,5.1988,2940.0,2939.6,0.03401823]
[1766598163965,5.1988,2940.0,2939.5,0.92101939]
[1766598164267,5.25985731,2940.3,2939.5,0.92101939]
[1766598164471,0.06105731,2940.1,2939.5,0.92101939]
[1766598164787,0.06105731,2940.1,2939.6,0.03401823]
[1766598165197,9.53306767,2940.3,2939.6,0.03401823]
[1766598166280,12.93409421,2940.3,2939.6,0.03401823]
[1766598168002,5.1988,2940.2,2939.6,0.03401823]
[1766598168200,0.06105731,2940.1,2939.6,0.03401823]
[1766598168404,0.06105731,2939.9,2939.5,0.888]
[1766598168703,0.06105731,2939.9,2939.4,0.001]
[1766598168704,0.06105731,2939.7,2939.4,0.001]
[1766598169600,5.25985731,2939.7,2939.4,0.001]
[1766598170095,3.46253999,2939.9,2939.4,0.001]
[1766598170096,0.06105731,2939.9,2939.4,0.001]
[1766598170466,0.06105731,2939.9,2939.4,5.3951]
[1766598170880,3.46254533,2939.9,2939.4,5.3951]
[1766598171102,3.46254533,2939.9,2939.4,0.001]
[1766598172699,0.06105731,2939.9,2939.4,0.001]
[1766598173100,3.46254979,2939.9,2939.4,0.001]
[1766598173501,0.06105731,2939.9,2939.4,0.001]
[1766598173702,5.25985731,2939.7,2939.4,0.001]
[1766598174705,0.06105731,2939.7,2939.4,0.001]
[1766598176576,3.4016017,2939.8,2939.4,0.001]
[1766598176779,3.46258921,2939.9,2939.4,0.001]
[1766598177307,0.06105731,2940.1,2939.5,5.3941]
[1766598177509,5.1988,2940.0,2939.4,0.03502054]
[1766598177820,5.25985731,2939.9,2939.4,0.001]
[1766598178112,8.66143895,2939.9,2939.4,0.001]
[1766598178277,5.1988,2939.9,2939.4,0.001]
[1766598178473,3.40126309,2940.1,2939.4,5.3951]
[1766598178677,3.40126309,2940.1,2939.5,5.42811939]
[1766598178914,3.40115219,2940.2,2939.5,5.42811939]
[1766598179117,5.25985731,2940.5,2939.7,5.3941]
[1766598179323,5.25985731,2940.5,2939.8,5.42811591]
[1766598179324,8.66065548,2940.5,2939.8,5.42811591]
[1766598180013,12.06145365,2940.5,2939.8,5.42811591]
[1766598180610,8.66065548,2940.5,2939.8,5.42811591]
[1766598180794,12.06145365,2940.5,2939.8,5.42811591]
[1766598181492,8.59959817,2940.5,2939.8,5.42811591]
[1766598181694,8.59959817,2940.5,2939.8,6.0597275]
[1766598182095,12.00039634,2940.5,2939.8,6.0597275]
[1766598182291,8.59959817,2940.5,2939.8,6.0597275]
[1766598182705,8.66065548,2940.5,2939.8,6.0597275]
[1766598183323,0.06105731,2940.9,2939.8,6.0597275]
[1766598183529,0.06105731,2940.9,2940.0,5.3194]
[1766598183530,6.8008705,2940.8,2940.0,5.3194]
[1766598183725,12.3726705,2940.8,2940.1,0.03401244]
[1766598184734,8.97223525,2940.8,2940.1,5.35341244]
[1766598184938,12.3726705,2940.8,2940.1,5.35341244]
[1766598185237,1.30443009,2940.7,2940.1,0.03401244]
[1766598185536,5.5718,2940.6,2940.1,0.03401244]
[1766598186697,6.80156434,2940.5,2940.1,0.03401244]
[1766598186901,5.66689143,2940.4,2939.6,6.2074]
[1766598187245,5.66689143,2940.4,2939.7,0.03401707]
[1766598188038,12.373827,2940.3,2939.7,0.03401707]
[1766598188249,5.60583412,2940.2,2939.7,0.03401707]
[1766598189318,0.03403412,2940.2,2939.7,5.35341707]
[1766598189513,0.03403412,2940.3,2939.7,5.35341707]
[1766598189712,0.03403412,2940.3,2939.7,6.07366189]
[1766598190330,3.43505162,2940.3,2939.7,6.07366189]
[1766598191212,3.43498252,2940.4,2939.7,6.07366189]
[1766598191410,3.4009484,2940.4,2939.7,6.07366189]
[1766598191837,0.03403412,2940.3,2939.7,6.07366189]
[1766598192207,3.43516075,2940.3,2939.7,6.07366189]
[1766598192413,3.43516075,2940.3,2939.7,5.35341707]
[1766598192642,9.00696075,2940.3,2939.7,5.35341707]
[1766598192845,8.97292663,2940.3,2939.7,5.35341707]
[1766598194044,12.37405326,2940.3,2939.7,5.35341707]
[1766598194244,8.97292663,2940.3,2939.7,5.35341707]
[1766598194682,5.63285731,2940.2,2939.7,0.03401707]
[1766598194860,5.63285731,2940.2,2939.6,0.001]
[1766598194861,5.66689143,2940.2,2939.6,0.888]
[1766598195027,5.66689143,2940.2,2939.7,0.03401707]
[1766598195228,7.04425827,2940.2,2939.7,0.03401707]
[1766598195527,7.01022415,2940.2,2939.7,0.03401707]
[1766598195726,0.03403412,2940.1,2939.7,0.03401707]
[1766598197049,7.01222415,2940.2,2939.7,0.03401707]
[1766598197223,5.63485731,2940.2,2939.7,0.03401707]
[1766598197426,9.07002696,2940.2,2939.7,0.03401707]
[1766598197626,9.03599284,2940.2,2939.7,0.03401707]
[1766598198451,5.5738,2940.2,2939.7,0.03401707]
[1766598198658,0.002,2940.2,2939.8,5.3194]
[1766598198856,0.002,2940.2,2939.9,0.03401476]
[1766598199871,0.002,2940.2,2939.8,5.3194]
[1766598200032,0.002,2940.2,2939.8,6.28031654]
[1766598201665,0.002,2940.2,2939.8,5.3194]
[1766598202367,0.03603412,2940.2,2939.6,0.888]
[1766598202543,0.03603412,2940.2,2939.7,0.03401707]
[1766598203144,0.002,2940.2,2939.7,5.35341707]
[1766598203563,3.40084077,2940.5,2939.8,5.3194]
[1766598203875,0.03403412,2940.4,2940.0,5.3194]
[1766598204042,12.37348154,2940.5,2939.8,1.30449101]
[1766598204377,8.97264077,2940.5,2939.9,0.03401476]
[1766598205549,12.37348154,2940.5,2939.9,0.03401476]
[1766598205744,8.97264077,2940.5,2939.9,0.03401476]
[1766598205944,0.002,2940.2,2939.9,5.35341476]
[1766598206271,0.002,2940.2,2939.9,5.88885624]
[1766598207577,8.97264077,2940.5,2939.9,5.88885624]
[1766598207749,3.40084077,2940.5,2939.9,5.88885624]
[1766598208069,0.06105731,2940.9,2940.1,5.3194]
[1766598208239,0.06105731,2940.9,2940.0,0.887]
[1766598208240,6.86180335,2940.9,2940.3,5.3194]
[1766598208440,6.86180335,2940.9,2940.2,0.62064]
[1766598208441,0.06105731,2940.7,2940.2,0.62064]
[1766598208640,5.63285731,2940.7,2940.1,6.2064]
[1766598209274,3.40066653,2940.6,2940.1,6.2064]
[1766598209651,5.5718,2940.7,2940.1,6.2064]
[1766598209969,3.40055208,2940.7,2940.1,6.2064]
[1766598210562,3.46150837,2940.8,2940.2,5.35341129]
[1766598210764,3.46150837,2940.8,2940.2,6.3175881]
[1766598211344,3.40045106,2940.8,2940.2,6.3175881]
[1766598211546,8.97206783,2941.0,2940.2,6.3175881]
[1766598212047,0.06105731,2941.1,2940.3,5.3052]
[1766598212247,12.30066687,2941.1,2940.4,0.03400897]
[1766598212447,12.30066687,2941.1,2940.5,0.887]
[1766598212646,12.30066687,2941.1,2940.6,0.03400666]
[1766598212647,5.4394,2941.0,2940.6,0.03400666]
[1766598213279,0.06105731,2941.1,2940.6,5.33920666]
[1766598213280,3.46117499,2941.1,2940.6,5.33920666]
[1766598213583,0.06105731,2941.1,2940.6,5.33920666]
[1766598213743,3.46097766,2941.3,2940.6,6.30191439]
[1766598214082,3.46096967,2941.3,2940.6,6.26790773]
[1766598214248,6.86088203,2941.3,2940.6,6.26790773]
[1766598214756,0.002,2941.0,2940.6,6.26790773]
[1766598214965,0.002,2941.0,2940.7,0.71549077]
[1766598215643,0.002,2941.0,2940.7,6.02069077]
[1766598216260,0.002,2941.8,2940.8,5.33920435]
[1766598216483,0.002,2942.1,2941.0,5.3052]
[1766598216790,3.40100633,2942.1,2941.2,5.3052]
[1766598216952,3.40100633,2942.1,2941.1,0.65322088]
[1766598216953,3.40100633,2942.1,2941.4,5.3828]
[1766598217150,3.40100633,2942.1,2941.5,5.41679626]
[1766598217592,0.002,2942.1,2941.5,5.41679626]
[1766598220581,0.06305731,2942.1,2941.5,5.41679626]
[1766598222384,3.46200618,2942.1,2941.5,5.41679626]
[1766598228595,0.06305731,2942.1,2941.5,5.41679626]
[1766598228765,3.40087843,2942.2,2941.6,5.3828]
[1766598229108,0.002,2942.4,2941.8,5.3828]
[1766598229397,0.002,2942.6,2942.0,5.3828]
[1766598229569,0.002,2942.6,2942.2,5.3828]
[1766598229759,3.40036277,2942.6,2942.2,5.41678817]
[1766598229959,0.002,2942.6,2942.2,5.41678817]
[1766598230194,0.06105731,2942.5,2942.2,5.41678817]
[1766598231094,0.06105731,2942.5,2942.2,0.03398817]
[1766598231591,0.06105731,2942.3,2942.1,0.886]
[1766598231764,0.06105731,2942.3,2941.8,0.886]
[1766598232465,0.06105731,2942.3,2941.7,8.78218756]
[1766598232663,5.41625731,2942.3,2941.7,6.68914359]
[1766598232885,0.06105731,2942.1,2941.7,6.68914359]
[1766598233090,0.06105731,2942.1,2941.5,3.39956883]
[1766598233295,0.06105731,2942.1,2941.6,3.39947649]
[1766598233796,0.06105731,2942.1,2941.5,8.78237492]
[1766598234295,5.41625731,2941.9,2941.1,0.001]
[1766598234495,5.41625731,2942.2,2941.5,8.78236952]
[1766598234699,0.06105731,2942.2,2941.7,3.39939155]
[1766598234868,0.94905731,2942.4,2941.8,5.41679279]
[1766598235205,0.94905731,2942.4,2941.9,5.3828]
[1766598235413,5.3552,2942.5,2942.0,0.03399048]
[1766598235571,0.06105731,2942.4,2942.0,0.03399048]
[1766598238106,0.002,2942.5,2942.0,5.41679048]
[1766598238289,0.06105731,2942.4,2942.0,5.41679048]
[1766598238479,0.06105731,2942.3,2941.7,5.3828]
[1766598238671,0.06105731,2942.3,2941.7,6.34962485]
[1766598239399,0.06105731,2942.1,2941.5,3.39962604]
[1766598239596,0.06105731,2942.1,2941.5,8.78242604]
[1766598240703,0.06105731,2942.1,2941.4,4.28565879]
[1766598240704,0.06105731,2942.1,2941.6,5.3828]
[1766598241505,5.53225731,2942.1,2941.6,5.3828]
[1766598241707,0.06105731,2941.9,2941.3,5.5201]
[1766598241888,5.53225731,2941.9,2941.3,5.5201]
[1766598242202,5.53225731,2941.9,2941.2,3.39995185]
[1766598243810,5.53225731,2941.9,2941.2,8.92005185]
[1766598244695,5.5662796,2941.9,2941.2,8.92005185]
[1766598245304,5.53225731,2941.7,2941.2,5.5201]
[1766598245484,0.06105731,2941.5,2941.1,0.001]
[1766598247012,5.50522229,2941.6,2941.1,0.001]
[1766598247211,0.06105731,2941.7,2941.1,5.55510088]
[1766598248216,0.06105731,2941.7,2941.2,5.5201]
[1766598248512,0.06105731,2941.7,2941.3,0.03399857]
[1766598248678,0.06105731,2942.1,2941.4,5.5201]
[1766598248880,0.002,2942.3,2941.6,4.82551941]
[1766598249102,0.002,2942.3,2941.7,5.55409394]
[1766598251382,0.002,2942.3,2941.7,8.95346016]
[1766598251578,0.002,2942.3,2941.7,4.63467479]
[1766598251810,0.002,2942.3,2941.8,5.5201]
[1766598252113,0.002,2942.3,2941.9,0.03399163]
[1766598252418,0.06105731,2942.0,2941.5,5.5201]
[1766598252614,0.06105731,2942.2,2941.7,5.5201]
[1766598252796,0.06105731,2942.2,2941.8,0.01696459]
[1766598253312,0.10354252,2942.2,2941.8,0.01696459]
[1766598254315,3.50239293,2942.2,2941.8,0.01696459]
[1766598254515,8.97359293,2942.2,2941.6,0.001]
[1766598254722,0.06105731,2942.0,2941.6,0.001]
[1766598254916,5.57474252,2942.2,2941.6,8.93751203]
[1766598255117,0.06105731,2942.1,2941.8,5.5201]
[1766598255320,0.002,2942.3,2941.8,5.5201]
[1766598255529,0.002,2942.3,2941.9,0.0169617]
[1766598255704,0.002,2942.6,2942.0,5.5201]
[1766598255889,0.95105731,2942.7,2942.2,5.5201]
[1766598256094,0.06105731,2942.9,2942.3,5.55408701]
[1766598256290,0.06105731,2942.9,2942.3,6.10949571]
[1766598256912,3.45908443,2942.9,2942.3,6.0755087]
[1766598257111,0.06105731,2942.7,2942.3,5.5201]
[1766598257391,3.45930565,2942.7,2942.4,0.02544545]
[1766598257725,3.45930565,2942.7,2942.1,0.03398932]
[1766598258716,0.06105731,2942.5,2942.0,6.07380617]
[1766598258899,5.53225731,2942.5,2941.7,8.91947932]
[1766598259104,0.06105731,2942.3,2941.7,5.5201]
[1766598259791,0.06105731,2942.3,2941.6,4.28643231]
[1766598259792,5.4712,2942.2,2941.6,4.28643231]
[1766598259993,0.08658891,2942.1,2941.6,0.001]
[1766598261213,5.4712,2942.2,2941.6,3.40043171]
[1766598261523,5.4712,2942.2,2941.7,0.03399394]
[1766598261829,0.06105731,2942.1,2941.6,0.0349951]
[1766598262195,0.06105731,2942.1,2941.6,0.001]
[1766598262803,0.06105731,2942.1,2941.6,5.5211]
[1766598263021,0.06105731,2942.1,2941.7,0.03399394]
[1766598264108,0.08658891,2942.1,2941.7,0.03399394]
[1766598269530,0.08658891,2942.1,2941.6,5.5211]
[1766598269531,0.06105731,2941.9,2941.6,0.001]
[1766598270905,7.00337491,2942.1,2941.6,0.001]
[1766598271111,10.35984505,2942.1,2941.6,0.001]
[1766598271922,6.96088826,2942.1,2941.6,0.001]
[1766598272122,0.0424881,2942.0,2941.6,0.001]
[1766598272545,0.0424881,2942.0,2941.6,5.4569]
[1766598272846,0.0424881,2942.0,2941.7,0.0254573]
[1766598273598,0.0424881,2942.0,2941.6,5.4569]
[1766598273829,4.33912147,2942.0,2941.6,5.4569]
[1766598274028,5.51145731,2941.9,2941.6,0.001]
[1766598274437,5.55394685,2941.9,2941.6,0.001]
[1766598274939,5.51145731,2941.9,2941.6,0.001]
[1766598276417,5.55394685,2941.9,2941.6,0.001]
[1766598276638,5.51145731,2941.9,2941.6,0.001]
[1766598277016,8.89205919,2941.9,2941.6,0.001]
[1766598277216,8.84961633,2941.9,2941.6,0.001]
[1766598277441,5.4504,2941.9,2941.6,0.001]
[1766598277644,5.55394685,2941.9,2941.6,0.001]
[1766598279014,8.95312089,2941.9,2941.6,0.001]
[1766598279215,6.8425286,2941.9,2941.6,0.001]
[1766598279452,5.7785,2941.8,2941.6,0.001]
[1766598283044,5.82099099,2941.8,2941.6,0.001]
[1766598283249,5.7785,2941.8,2941.6,0.001]
[1766598283448,1.33107129,2941.9,2941.6,0.001]
[1766598283620,9.17940068,2942.2,2941.6,5.44625918]
[1766598284718,12.57830136,2942.2,2941.6,5.44625918]
[1766598284920,5.88204396,2942.1,2941.6,0.02645918]
[1766598285126,7.15633422,2942.1,2941.6,0.001]
[1766598285326,7.11384757,2942.1,2941.6,0.001]
[1766598285524,5.8209881,2942.0,2941.6,0.001]
[1766598289572,0.002,2942.2,2941.6,5.4208]
[1766598289771,0.89,2942.2,2941.8,5.4198]
[1766598290082,4.28881783,2942.2,2941.9,0.03399163]
[1766598290753,0.01703744,2942.1,2941.9,0.03399163]
[1766598290953,3.40081783,2942.2,2941.9,0.03399163]
[1766598291156,0.002,2942.2,2941.9,0.03399163]
[1766598293171,0.888,2942.4,2942.0,5.4198]
[1766598293485,0.01703744,2942.5,2942.1,5.45378932]
[1766598293671,3.40029565,2942.7,2942.2,5.4198]
[1766598293985,0.002,2942.7,2942.3,5.4198]
[1766598294207,0.002,2942.7,2942.3,5.96178]
[1766598294495,9.17810829,2943.3,2942.6,5.4198]
[1766598294696,9.17810829,2943.3,2942.8,5.4198]
[1766598294861,5.7785,2943.2,2942.5,5.4198]
[1766598295042,5.7785,2943.2,2942.5,6.015978]
[1766598295242,5.7785,2943.2,2942.6,0.03398355]
[1766598295523,0.002,2943.3,2942.6,5.45378355]
[1766598295699,0.002,2943.3,2942.8,5.4198]
[1766598295982,0.002,2943.3,2942.9,5.45378008]
[1766598296679,0.002,2943.3,2942.9,5.4198]
[1766598297282,0.002,2943.3,2942.7,1.0874313]
[1766598297490,5.7805,2943.3,2942.7,5.4198]
[1766598298053,3.3976624,2943.2,2942.7,5.4198]
[1766598298546,5.7785,2943.2,2942.7,5.4198]
[1766598300303,5.7785,2943.1,2942.3,5.4198]
[1766598300467,5.7785,2943.1,2941.9,0.001]
[1766598300468,5.7785,2942.7,2941.9,0.001]
[1766598300859,5.7785,2942.5,2941.9,0.001]
[1766598301487,5.8749,2942.4,2941.9,0.001]
[1766598301669,5.8749,2942.1,2941.6,0.001]
[1766598302497,5.8749,2942.1,2941.6,0.0349951]
[1766598303190,5.8749,2942.1,2941.9,0.001]
[1766598303569,9.27362699,2942.3,2941.9,0.001]
[1766598306699,4.55734308,2942.4,2941.9,5.5776]
[1766598306921,3.39861793,2942.4,2942.0,0.03399048]
[1766598307079,3.39851736,2942.5,2942.0,5.61059048]
[1766598307279,12.67193472,2942.5,2942.0,5.5766]
[1766598307515,10.69925145,2943.0,2942.0,5.5766]
[1766598307823,9.27290876,2942.9,2942.2,5.5766]
[1766598307980,9.27290876,2942.9,2942.3,0.03398701]
[1766598308682,12.67091752,2942.9,2942.3,0.03398701]
[1766598309015,14.15256877,2942.9,2942.3,0.03398701]
[1766598309482,5.8749,2942.8,2941.9,0.03499163]
[1766598309679,5.8749,2942.8,2941.9,0.001]
[1766598309893,5.93595731,2942.8,2941.9,0.001]
[1766598310092,5.8749,2942.6,2941.9,0.001]
[1766598310316,6.7629,2942.5,2941.9,0.001]
[1766598310979,3.39858618,2942.4,2941.9,0.001]
[1766598311189,5.8749,2942.3,2941.9,0.001]
[1766598313083,5.8749,2942.1,2941.6,0.001]
[1766598313511,5.8749,2942.0,2941.6,0.001]
[1766598318125,9.27396884,2942.0,2941.6,0.001]
[1766598318320,5.8749,2941.9,2941.5,0.001]
[1766598319424,9.27417158,2941.9,2941.5,0.001]
[1766598319604,5.8749,2942.1,2941.6,5.5075]
[1766598320110,0.002,2942.4,2941.6,5.5075]
[1766598320287,9.27281378,2943.0,2941.8,5.5048]
[1766598320494,3.39800876,2942.9,2942.0,5.5048]
[1766598320696,3.39800876,2942.9,2942.2,5.5048]
[1766598321006,3.39800876,2942.9,2942.3,5.53878701]
[1766598321217,5.8749,2942.8,2942.3,5.5048]
[1766598321418,9.27306471,2942.8,2942.4,0.03398586]
[1766598322705,5.9089233,2942.7,2942.0,5.5014]
[1766598323730,3.39835519,2942.6,2942.0,5.5014]
[1766598323931,0.0340233,2942.5,2942.0,5.5014]
[1766598324226,9.27315709,2942.7,2941.7,4.2863347]
[1766598324227,5.8749,2942.7,2942.1,5.52998932]
[1766598324427,9.27320307,2942.7,2942.1,5.52998932]
[1766598324628,0.0340233,2942.6,2942.1,5.52998932]
[1766598326429,3.43247643,2942.6,2942.1,5.52998932]
[1766598326613,0.0340233,2942.6,2942.1,5.52998932]
[1766598327021,3.43240085,2942.6,2942.1,5.52998932]
[1766598328637,9.2731984,2942.7,2942.1,5.52998932]
[1766598329001,3.40012772,2942.8,2942.1,6.42300391]
[1766598329329,12.70717874,2942.8,2942.1,6.42300391]
[1766598329532,5.8749,2942.7,2942.1,6.38901459]
[1766598329831,6.79825544,2942.8,2942.1,6.38901459]
[1766598330327,5.8749,2942.7,2942.1,5.496]
[1766598330627,5.9089233,2942.6,2942.0,0.001]
[1766598330828,5.8749,2942.6,2942.0,0.001]
[1766598331029,5.8749,2942.4,2941.5,0.001]
[1766598331327,5.8749,2942.2,2941.5,0.001]
[1766598331505,6.7629,2942.2,2941.5,8.70505782]
[1766598331694,6.7629,2942.2,2941.6,5.3384951]
[1766598332322,10.1617749,2942.2,2941.6,5.3384951]
[1766598332495,10.16175153,2942.2,2941.6,5.3384951]
[1766598332704,0.0340233,2942.1,2941.6,5.3384951]
[1766598333226,5.6375233,2942.1,2941.5,0.03499626]
[1766598333400,5.6035,2942.1,2941.5,5.3055]
[1766598333747,5.6375233,2942.1,2941.6,0.0339951]
[1766598333903,1.46792793,2942.0,2941.6,0.0339951]
[1766598334331,3.43320032,2941.9,2941.5,0.001]
[1766598337525,0.0340233,2941.9,2941.5,0.03499626]
[1766598337720,3.43313017,2942.0,2941.5,0.001]
[1766598338731,5.3005,2941.9,2941.5,0.001]
[1766598339035,5.3005,2941.7,2941.5,0.001]
[1766598339337,5.3005,2942.4,2941.5,0.001]